bitfinex-derivatives/quotes_BTCF0:USTF0_20241223
["timestamp","ask_amount","ask_price","bid_price","bid_amount"]
[1734970994823,0.15906309,93075.0,93063.0,1.5]
[1734970995233,0.3608,93068.0,93063.0,1.5]
[1734970995434,0.15906309,93075.0,93063.0,1.5]
[1734970995435,0.02688687,93077.0,93067.0,0.053791]
[1734970995629,0.053784,93080.0,93066.0,0.3608]
[1734970995830,0.15906309,93081.0,93064.0,0.053793]
[1734970996036,0.15906309,93081.0,93064.0,0.4223]
[1734970996237,0.414586,93078.0,93064.0,0.4223]
[1734970996931,0.414586,93078.0,93064.0,0.476093]
[1734970997328,0.414586,93078.0,93064.0,0.4223]
[1734970997533,0.420586,93078.0,93071.0,0.00991414]
[1734970997728,0.053787,93076.0,93071.0,0.00991414]
[1734970998536,0.414589,93072.0,93071.0,0.00991414]
[1734970998735,0.053792,93067.0,93049.0,0.053802]
[1734970998937,0.3608,93061.0,93049.0,0.053802]
[1734970999639,0.3608,93061.0,93051.0,0.0538]
[1734971000136,0.3678,93061.0,93053.0,0.053799]
[1734971000733,0.3718,93061.0,93053.0,0.053799]
[1734971001243,0.3638,93061.0,93053.0,0.053799]
[1734971001433,0.3718,93061.0,93053.0,0.053799]
[1734971002334,0.3718,93061.0,93054.0,0.053799]
[1734971002544,0.3718,93061.0,93050.0,0.053801]
[1734971003241,0.3718,93061.0,93049.0,0.02640286]
[1734971003636,0.3688,93061.0,93049.0,0.02640286]
[1734971003944,0.3718,93061.0,93049.0,0.02640286]
[1734971004143,0.15949895,93060.0,93049.0,0.02640286]
[1734971005035,0.15949895,93060.0,93039.0,0.053808]
[1734971005232,0.3608,93052.0,93040.0,0.01180718]
[1734971005432,0.3608,93052.0,93041.0,0.01180718]
[1734971005640,0.3608,93052.0,93042.0,0.01180718]
[1734971005841,0.3608,93052.0,93043.0,0.01180718]
[1734971006037,0.3608,93052.0,93044.0,0.01180718]
[1734971006243,0.3608,93052.0,93045.0,0.01180718]
[1734971006444,0.3608,93052.0,93046.0,0.01180718]
[1734971006643,0.4196,93052.0,93047.0,0.01180718]
[1734971006839,0.3658,93052.0,93048.0,0.01184107]
[1734971007045,0.053802,93050.0,93037.0,0.42622581]
[1734971007246,0.053802,93050.0,93038.0,0.01183961]
[1734971007435,0.053802,93050.0,93039.0,0.01183961]
[1734971007639,0.08875819,93050.0,93040.0,0.01183961]
[1734971007837,0.08875819,93050.0,93041.0,0.01183961]
[1734971008038,0.08875819,93050.0,93026.0,0.4164]
[1734971008039,0.3608,93043.0,93032.0,0.25699743]
[1734971008234,0.39375819,93042.0,93034.0,0.3608]
[1734971008438,0.305,93042.0,93034.0,0.3608]
[1734971009947,0.053807,93041.0,93034.0,0.3608]
[1734971010149,0.053807,93040.0,93034.0,0.3608]
[1734971010634,0.307,93042.0,93034.0,0.3608]
[1734971011041,0.002,93041.0,93034.0,0.3608]
[1734971011237,0.053807,93040.0,93035.0,0.3608]
[1734971011443,0.002,93041.0,93035.0,0.3608]
[1734971011841,0.053807,93040.0,93035.0,0.3608]
[1734971012036,0.002,93041.0,93035.0,0.3608]
[1734971012643,0.002,93040.0,93035.0,0.3608]
[1734971013245,0.053808,93039.0,93035.0,0.3608]
[1734971014353,0.02638416,93043.0,93035.0,0.3608]
[1734971014550,0.055813,93039.0,93035.0,0.3608]
[1734971014744,0.002,93039.0,93035.0,0.3608]
[1734971016039,0.002,93043.0,93035.0,0.3608]
[1734971016247,0.1594083,93048.0,93042.0,0.3608]
[1734971016454,0.1594083,93048.0,93047.0,0.414608]
[1734971016651,0.1594083,93048.0,93047.0,0.3608]
[1734971017154,0.00161294,93062.0,93055.0,0.053804]
[1734971017347,0.3543,93098.0,93061.0,0.3608]
[1734971017547,0.08875819,93080.0,93076.0,0.3608]
[1734971017750,0.3116715,93086.0,93076.0,0.3608]
[1734971017947,0.25624436,93086.0,93085.0,0.053786]
[1734971018152,0.22291331,93086.0,93085.0,0.053786]
[1734971018755,0.03282832,93089.0,93084.0,0.3608]
[1734971019055,0.08875819,93100.0,93084.0,0.3608]
[1734971019056,0.053782,93094.0,93084.0,0.3608]
[1734971019253,0.034303,93094.0,93089.0,0.053784]
[1734971019453,0.034303,93094.0,93085.0,1.8608]
[1734971019653,0.034303,93094.0,93086.0,0.053786]
[1734971019850,0.034303,93094.0,93085.0,1.8608]
[1734971020052,0.034303,93094.0,93085.0,0.3608]
[1734971020252,0.088085,93094.0,93085.0,0.3608]
[1734971020443,0.034303,93094.0,93085.0,0.3608]
[1734971020650,0.006,93089.0,93086.0,1.5]
[1734971021554,0.01261195,93091.0,93085.0,0.3608]
[1734971022354,0.005,93089.0,93085.0,0.3608]
[1734971022749,0.053786,93087.0,93085.0,0.3608]
[1734971024254,0.053792,93076.0,93061.0,0.3608]
[1734971024457,0.053792,93075.0,93061.0,0.3608]
[1734971024756,0.053794,93073.0,93061.0,0.3608]
[1734971024963,0.053793,93075.0,93061.0,0.3608]
[1734971025463,0.055793,93075.0,93061.0,0.3608]
[1734971025662,0.002,93075.0,93062.0,0.0538]
[1734971025851,0.002,93075.0,93061.0,0.3608]
[1734971026053,0.009,93075.0,93061.0,0.3608]
[1734971026354,0.002,93075.0,93069.0,0.3608]
[1734971026654,0.011,93075.0,93069.0,0.3608]
[1734971027762,0.013,93075.0,93069.0,0.3608]
[1734971028459,0.04639878,93075.0,93069.0,0.3608]
[1734971028664,0.05339878,93075.0,93069.0,0.3608]
[1734971029259,0.00161195,93091.0,93074.0,0.3608]
[1734971029467,0.3608,93114.0,93090.0,0.3608]
[1734971029770,0.00161135,93116.0,93110.0,0.053772]
[1734971030068,0.053755,93139.0,93115.0,0.3608]
[1734971030251,0.3608,93153.0,93135.0,0.3608]
[1734971030452,0.053753,93143.0,93135.0,0.3608]
[1734971030866,0.3608,93144.0,93127.0,0.3608]
[1734971031166,0.3608,93131.0,93118.0,0.3608]
[1734971031462,0.44955819,93131.0,93118.0,0.3608]
[1734971031668,0.053766,93120.0,93118.0,0.3608]
[1734971031869,0.053766,93120.0,93105.0,0.3608]
[1734971032063,0.053766,93120.0,93114.0,0.3608]
[1734971032260,0.053768,93117.0,93115.0,0.001]
[1734971032666,0.053782,93094.0,93084.0,0.40290875]
[1734971032866,0.05377,93114.0,93084.0,0.40290875]
[1734971032867,0.053782,93092.0,93084.0,0.40290875]
[1734971033166,0.44955819,93101.0,93091.0,0.00196957]
[1734971033364,0.053782,93092.0,93091.0,0.00196957]
[1734971033962,0.053782,93092.0,93091.0,0.00296957]
[1734971034766,0.416582,93092.0,93091.0,0.00196957]
[1734971034968,0.45837244,93092.0,93091.0,0.00196957]
[1734971035371,0.40459044,93092.0,93091.0,0.00196957]
[1734971035564,0.40959044,93092.0,93091.0,0.00196957]
[1734971035965,0.40459044,93092.0,93091.0,0.00196957]
[1734971036173,0.41859044,93092.0,93091.0,0.00296957]
[1734971036969,0.41659044,93092.0,93091.0,0.00296957]
[1734971037167,0.40759044,93092.0,93091.0,0.00296957]
[1734971037359,0.41659044,93092.0,93091.0,0.00296957]
[1734971037771,0.41859044,93092.0,93091.0,0.00296957]
[1734971038364,0.05779044,93092.0,93091.0,0.00296957]
[1734971038766,0.04879044,93092.0,93091.0,0.00296957]
[1734971038964,0.05779044,93092.0,93091.0,0.00296957]
[1734971039362,0.04879044,93092.0,93091.0,0.00296957]
[1734971039565,0.05779044,93092.0,93091.0,0.00296957]
[1734971041770,0.04879044,93092.0,93091.0,0.00296957]
[1734971042077,0.05779044,93092.0,93091.0,0.00296957]
[1734971043173,0.05779044,93092.0,93070.0,0.00161178]
[1734971043174,0.053795,93071.0,93070.0,0.00161178]
[1734971044782,0.054795,93071.0,93070.0,0.00161178]
[1734971045169,0.054795,93071.0,93055.0,0.3608]
[1734971045170,0.053803,93056.0,93055.0,0.3608]
[1734971045369,0.053808,93047.0,93046.0,0.00056]
[1734971045572,0.7216,93047.0,93020.0,0.00161265]
[1734971045768,0.3608,93047.0,93029.0,0.3608]
[1734971045972,0.3608,93047.0,93038.0,0.3608]
[1734971046176,0.053805,93053.0,93046.0,0.3608]
[1734971046377,0.3608,93056.0,93046.0,0.3608]
[1734971046578,0.002,93047.0,93036.0,0.3608]
[1734971047072,0.001,93047.0,93036.0,0.3608]
[1734971047777,0.053809,93046.0,93036.0,0.3608]
[1734971048086,0.053813,93039.0,93036.0,0.3608]
[1734971048274,0.001,93047.0,93036.0,0.3608]
[1734971048473,0.053812,93041.0,93036.0,0.3608]
[1734971051383,0.3608,93047.0,93025.0,0.4062]
[1734971051683,0.3608,93047.0,93026.0,0.3608]
[1734971051880,0.053812,93042.0,93026.0,0.3608]
[1734971052188,0.053813,93040.0,93034.0,0.3608]
[1734971052479,0.3608,93047.0,93034.0,0.3608]
[1734971052685,0.053813,93039.0,93034.0,0.3608]
[1734971052882,0.3618,93047.0,93026.0,0.3608]
[1734971053382,0.3608,93047.0,93026.0,0.3608]
[1734971053977,0.3608,93047.0,93035.0,0.3608]
[1734971054275,0.3608,93047.0,93036.0,0.3608]
[1734971054478,0.3608,93047.0,93026.0,0.3608]
[1734971054683,0.08875819,93040.0,93026.0,0.3608]
[1734971054878,0.3618,93047.0,93026.0,0.3608]
[1734971055277,0.08875819,93040.0,93026.0,0.3608]
[1734971055684,0.3608,93047.0,93026.0,0.3608]
[1734971056184,0.3618,93047.0,93026.0,0.3608]
[1734971057477,0.3618,93047.0,93034.0,0.3608]
[1734971057678,0.001,93040.0,93034.0,0.3608]
[1734971058093,0.3608,93047.0,93027.0,0.3608]
[1734971058280,0.053809,93046.0,93027.0,0.3608]
[1734971058479,0.08875819,93040.0,93039.0,0.3608]
[1734971058676,0.053812,93040.0,93039.0,0.3608]
[1734971059277,0.08875819,93049.0,93027.0,0.3608]
[1734971059483,0.053818,93031.0,93027.0,0.3608]
[1734971060280,0.08875819,93037.0,93027.0,0.3608]
[1734971060487,0.14257219,93037.0,93036.0,0.3608]
[1734971060679,0.053814,93037.0,93036.0,0.3608]
[1734971061179,0.0962185,93037.0,93036.0,0.3608]
[1734971062393,0.053817,93032.0,93027.0,0.3608]
[1734971062691,0.053817,93032.0,93027.0,0.7216]
[1734971062887,0.0424045,93037.0,93027.0,0.7216]
[1734971063089,0.053814,93038.0,93035.0,0.3608]
[1734971063293,0.053815,93036.0,93035.0,0.3608]
[1734971063791,0.053819,93029.0,93027.0,0.3608]
[1734971066797,0.054819,93029.0,93027.0,0.3608]
[1734971066985,0.054819,93029.0,93003.0,0.3608]
[1734971066986,0.301,93029.0,93003.0,0.3608]
[1734971067182,0.3608,93022.0,93015.0,0.3608]
[1734971067393,0.55638,93021.0,93003.0,0.55338904]
[1734971067581,0.053826,93017.0,93003.0,0.55338904]
[1734971068085,0.3,93017.0,93003.0,0.55338904]
[1734971068902,0.3,93017.0,93003.0,0.3608]
[1734971069282,0.34148921,93017.0,93003.0,0.3608]
[1734971069688,0.34248921,93017.0,93003.0,0.3608]
[1734971070091,0.34348921,93017.0,93003.0,0.3608]
[1734971070593,0.04348921,93017.0,93003.0,0.3608]
[1734971070801,0.04348921,93017.0,93011.0,0.3608]
[1734971071189,0.04348921,93017.0,93014.0,0.3608]
[1734971072896,0.04148921,93017.0,93014.0,0.3608]
[1734971073085,0.001,93017.0,93014.0,0.3608]
[1734971073285,0.001,93017.0,93014.0,0.33903]
[1734971073492,0.001,93017.0,92999.0,0.3608]
[1734971073493,0.6618,93017.0,92999.0,0.3608]
[1734971073791,0.3608,93017.0,92999.0,0.3608]
[1734971074298,0.6608,93017.0,92999.0,0.3608]
[1734971074497,0.6618,93017.0,92999.0,0.3608]
[1734971074900,0.001,93017.0,93007.0,0.3608]
[1734971075103,0.001,93017.0,93016.0,0.3608]
[1734971075291,0.002,93017.0,93016.0,0.3608]
[1734971075490,0.002,93017.0,93016.0,0.318273]
[1734971075701,0.002,93017.0,93008.0,0.321]
[1734971076092,0.302,93017.0,93002.0,0.3608]
[1734971076301,0.302,93017.0,93003.0,0.3608]
[1734971076798,0.301,93017.0,93003.0,0.3608]
[1734971077201,0.1786,93016.0,93003.0,0.3608]
[1734971077510,0.001,93017.0,93003.0,0.3608]
[1734971078204,0.15936401,93017.0,93003.0,0.3608]
[1734971078396,0.10751589,93016.0,93003.0,0.3608]
[1734971078592,0.15936401,93017.0,93012.0,0.3608]
[1734971079396,0.001,93017.0,93012.0,0.3608]
[1734971079599,0.001,93017.0,93013.0,0.3946]
[1734971079801,0.15836401,93019.0,93016.0,0.3608]
[1734971079997,0.3608,93046.0,93016.0,0.3608]
[1734971080207,0.3608,93046.0,93028.0,0.3608]
[1734971080606,0.22521019,93029.0,93028.0,0.3608]
[1734971081708,0.03523603,93029.0,93028.0,0.3608]
[1734971082003,0.3608,93048.0,93028.0,0.3608]
[1734971082208,0.6608,93048.0,93028.0,0.3608]
[1734971082401,0.002,93029.0,93028.0,0.3608]
[1734971083305,0.0358713,93029.0,93028.0,0.3608]
[1734971083602,0.008,93048.0,93028.0,0.3608]
[1734971083811,0.03604975,93048.0,93047.0,0.7216]
[1734971084005,0.18997416,93052.0,93047.0,0.7216]
[1734971084309,0.2894,93053.0,93048.0,0.3242]
[1734971084704,0.32587502,93053.0,93048.0,0.3242]
[1734971085210,0.32587502,93053.0,93047.0,0.7216]
[1734971085401,0.001,93048.0,93047.0,0.7216]
[1734971086112,0.32587502,93053.0,93047.0,0.7216]
[1734971086313,0.62887502,93053.0,93047.0,0.7216]
[1734971086509,0.009,93048.0,93039.0,0.3608]
[1734971086811,0.009,93048.0,93027.0,0.3608]
[1734971087004,0.10747661,93047.0,93027.0,0.3608]
[1734971087404,0.40747661,93047.0,93027.0,0.3608]
[1734971088405,0.3608,93044.0,93027.0,0.15354133]
[1734971088611,0.3608,93035.0,93018.0,0.34704191]
[1734971089005,0.6608,93035.0,93019.0,0.3959]
[1734971089205,0.3608,93035.0,93019.0,0.7219]
[1734971089410,0.3608,93035.0,93027.0,0.00143028]
[1734971089915,0.10748585,93034.0,93027.0,0.00143028]
[1734971090099,0.6628,93035.0,93027.0,0.00143028]
[1734971090299,0.6628,93035.0,93031.0,0.00143028]
[1734971090499,0.10749105,93034.0,93031.0,0.00143028]
[1734971091009,0.40749105,93034.0,93031.0,0.00143028]
[1734971091511,0.40749105,93034.0,93032.0,0.00143028]
[1734971091713,0.40918866,93035.0,93032.0,0.00143028]
[1734971092214,0.41218866,93035.0,93032.0,0.00143028]
[1734971092416,0.002,93034.0,93033.0,0.00143028]
[1734971093215,0.05338866,93035.0,93033.0,0.00143028]
[1734971093517,0.05538866,93035.0,93034.0,0.00143028]
[1734971094016,0.04738866,93035.0,93034.0,0.00143028]
[1734971094906,0.04538866,93035.0,93034.0,0.00143028]
[1734971095107,0.3608,93038.0,93034.0,0.00143028]
[1734971095304,0.3608,93038.0,93019.0,1.0502]
[1734971095305,0.70575536,93038.0,93019.0,1.0502]
[1734971095517,0.008,93035.0,93019.0,1.0502]
[1734971095706,0.011,93035.0,93019.0,1.0502]
[1734971096120,0.003,93035.0,93019.0,1.0502]
[1734971096914,0.002,93035.0,93019.0,1.0502]
[1734971101424,0.002,93035.0,93028.0,0.3608]
[1734971101921,0.3608,93072.0,93028.0,0.7216]
[1734971102122,0.65016,93072.0,93057.0,0.3608]
[1734971103219,0.28936,93072.0,93070.0,0.3608]
[1734971104323,0.33386191,93072.0,93070.0,0.3608]
[1734971104514,0.33686191,93072.0,93070.0,0.3608]
[1734971104920,0.33686191,93072.0,93070.0,0.30766898]
[1734971105117,0.33686191,93072.0,93049.0,0.294186]
[1734971105118,0.1786,93070.0,93049.0,0.294186]
[1734971105322,0.3608,93050.0,93031.0,0.3608]
[1734971105528,0.3608,93038.0,93023.0,0.4218]
[1734971105824,0.3608,93029.0,93023.0,0.4218]
[1734971106024,0.3608,93038.0,93023.0,0.7826]
[1734971106417,0.00115186,93031.0,93023.0,0.7826]
[1734971107630,0.00115186,93027.0,93023.0,0.7826]
[1734971108420,0.00115186,93025.0,93023.0,0.7826]
[1734971108719,0.00115186,93025.0,93023.0,0.4218]
[1734971109512,0.00115186,93024.0,93023.0,0.4218]
[1734971111027,0.00715186,93024.0,93013.0,0.3608]
[1734971111320,0.30915186,93024.0,93013.0,0.3608]
[1734971111516,0.30915186,93024.0,93004.0,0.31]
[1734971111517,0.00115186,93019.0,93004.0,0.7119]
[1734971112527,0.00115186,93014.0,93004.0,0.7119]
[1734971113339,0.19031171,93016.0,93013.0,0.3608]
[1734971113522,0.00161324,93033.0,93014.0,0.3608]
[1734971113722,0.54349888,93044.0,93032.0,0.3608]
[1734971113923,0.54265888,93044.0,93033.0,0.3328]
[1734971114225,0.58737365,93044.0,93034.0,1.5]
[1734971114422,0.33407477,93044.0,93033.0,0.3328]
[1734971114823,0.34307477,93044.0,93033.0,0.3328]
[1734971115030,0.34707477,93044.0,93033.0,0.3328]
[1734971115632,0.34307477,93044.0,93033.0,0.3328]
[1734971115833,0.34407477,93044.0,93033.0,0.3328]
[1734971116037,0.3608,93039.0,93021.0,0.3608]
[1734971116330,0.3608,93039.0,93015.0,0.3317]
[1734971116530,0.10748238,93038.0,93015.0,0.3317]
[1734971116937,0.3608,93039.0,93021.0,0.3608]
[1734971117639,0.3638,93039.0,93021.0,0.3608]
[1734971118048,0.005,93039.0,93021.0,0.3608]
[1734971118236,0.33407477,93044.0,93037.0,0.3608]
[1734971118539,0.28496124,93063.0,93040.0,0.3608]
[1734971118837,0.3608,93067.0,93051.0,0.3608]
[1734971119140,0.29725504,93064.0,93051.0,0.3608]
[1734971119337,0.29725504,93064.0,93063.0,0.3608]
[1734971119836,0.009,93063.0,93061.0,0.3608]
[1734971120229,0.00161278,93069.0,93061.0,0.3608]
[1734971120437,0.009,93064.0,93062.0,1.0069]
[1734971120633,0.00161208,93083.0,93062.0,1.0069]
[1734971120935,0.00161208,93083.0,93075.0,0.3608]
[1734971121840,0.00161208,93083.0,93062.0,1.0069]
[1734971122138,0.00761208,93083.0,93062.0,1.0069]
[1734971122531,0.007,93064.0,93062.0,1.0079]
[1734971123137,0.3608,93082.0,93062.0,1.0079]
[1734971123734,0.007,93064.0,93063.0,0.3855]
[1734971125333,0.3648,93082.0,93063.0,0.3855]
[1734971125641,0.006,93082.0,93072.0,0.3608]
[1734971125843,0.004,93082.0,93072.0,0.3608]
[1734971126145,0.004,93082.0,93080.0,0.3608]
[1734971126342,0.04384466,93087.0,93080.0,0.3608]
[1734971126646,0.3608,93109.0,93082.0,0.3608]
[1734971126940,0.04388768,93109.0,93100.0,0.3608]
[1734971127137,0.3608,93118.0,93100.0,0.3608]
[1734971128139,0.3608,93110.0,93100.0,0.3608]
[1734971128338,0.3608,93110.0,93092.0,0.3608]
[1734971129145,0.3638,93118.0,93101.0,0.3608]
[1734971129348,0.3638,93118.0,93102.0,0.3252]
[1734971129641,0.003,93118.0,93112.0,0.3608]
[1734971129836,0.04348201,93120.0,93112.0,0.3608]
[1734971130042,0.00161164,93122.0,93112.0,0.3608]
[1734971130242,0.00161164,93122.0,93121.0,0.3608]
[1734971130445,0.3608,93147.0,93121.0,0.3608]
[1734971130746,0.3608,93147.0,93129.0,0.3608]
[1734971130945,0.3608,93147.0,93130.0,0.3722]
[1734971131448,0.3608,93160.0,93140.0,0.3608]
[1734971131632,0.00161117,93162.0,93140.0,0.3608]
[1734971132036,0.04622994,93162.0,93149.0,0.3608]
[1734971132243,0.037,93153.0,93131.0,0.3608]
[1734971132447,0.3608,93132.0,93121.0,0.001]
[1734971132946,0.3608,93140.0,93121.0,0.001]
[1734971133148,0.3608,93130.0,93121.0,0.001]
[1734971133543,0.3608,93130.0,93109.0,0.3608]
[1734971133947,0.3608,93121.0,93109.0,0.3608]
[1734971134248,0.3608,93112.0,93105.0,0.3608]
[1734971134447,0.3608,93112.0,93087.0,0.6828]
[1734971134645,0.3608,93102.0,93087.0,0.6828]
[1734971135452,0.3608,93102.0,93087.0,0.3608]
[1734971136248,0.3638,93102.0,93080.0,0.3117]
[1734971136452,0.3638,93102.0,93085.0,0.3608]
[1734971137146,0.3648,93102.0,93093.0,0.3624114]
[1734971137341,0.3648,93102.0,93094.0,0.3967]
[1734971138143,0.40919541,93102.0,93094.0,0.3967]
[1734971138953,0.40619541,93102.0,93094.0,0.7575]
[1734971139249,0.40519541,93102.0,93094.0,0.3977]
[1734971139456,0.40519541,93102.0,93095.0,0.3608]
[1734971139650,0.3608,93112.0,93095.0,0.3608]
[1734971139849,0.29,93120.0,93103.0,0.3608]
[1734971140050,0.28916,93120.0,93104.0,0.311]
[1734971140655,0.28916,93120.0,93111.0,0.3608]
[1734971142054,0.3608,93132.0,93119.0,0.3608]
[1734971142354,0.3608,93132.0,93120.0,0.4037]
[1734971143357,0.3608,93165.0,93131.0,0.3608]
[1734971143549,0.3608,93165.0,93142.0,0.3608]
[1734971143855,0.05449258,93162.0,93142.0,0.3608]
[1734971144048,0.00161117,93162.0,93150.0,0.3608]
[1734971145549,0.01061117,93162.0,93158.0,0.3608]
[1734971146456,0.01461117,93162.0,93159.0,0.3737]
[1734971146852,0.01461117,93162.0,93159.0,0.6963]
[1734971147052,0.007,93162.0,93159.0,0.6963]
[1734971147249,0.007,93162.0,93159.0,0.3737]
[1734971147456,0.007,93162.0,93158.0,0.001]
[1734971148362,0.016,93162.0,93159.0,0.001]
[1734971148855,0.016,93162.0,93158.0,0.001]
[1734971149359,0.3608,93160.0,93141.0,0.41327233]
[1734971149549,0.3608,93160.0,93159.0,0.001]
[1734971149953,0.06082784,93162.0,93150.0,0.3608]
[1734971150158,0.06982784,93162.0,93158.0,0.001]
[1734971150657,0.06682784,93162.0,93158.0,0.001]
[1734971151056,0.013,93162.0,93158.0,0.001]
[1734971151261,0.013,93162.0,93158.0,0.3618]
[1734971151458,0.013,93162.0,93159.0,0.3127]
[1734971152054,0.004,93162.0,93150.0,0.3608]
[1734971153160,0.003,93162.0,93150.0,0.3608]
[1734971153362,0.005,93162.0,93150.0,0.3608]
[1734971154064,0.3608,93161.0,93150.0,0.3608]
[1734971154562,0.3608,93161.0,93142.0,0.367564]
[1734971154763,0.3608,93161.0,93150.0,0.002]
[1734971155554,0.3648,93161.0,93147.0,0.3608]
[1734971156165,0.004,93161.0,93160.0,0.3608]
[1734971156365,0.002,93162.0,93160.0,0.3608]
[1734971156558,0.7524,93198.0,93161.0,0.7503]
[1734971156559,0.3608,93186.0,93161.0,0.7503]
[1734971156759,0.3608,93189.0,93161.0,0.7503]
[1734971156959,0.4608,93200.0,93161.0,0.7503]
[1734971156960,0.4608,93200.0,93175.0,0.3608]
[1734971157158,0.05353543,93189.0,93175.0,0.7216]
[1734971157461,0.1,93200.0,93175.0,0.7216]
[1734971157768,0.10160977,93200.0,93179.0,0.053727]
[1734971157957,0.10160977,93200.0,93175.0,1.0216]
[1734971157958,0.10160977,93200.0,93199.0,0.3608]
[1734971158153,0.05574401,93209.0,93199.0,0.3608]
[1734971158468,0.00088001,93209.0,93207.0,0.3608]
[1734971158658,0.3608,93229.0,93207.0,0.3608]
[1734971159055,0.23866302,93222.0,93207.0,0.3608]
[1734971159562,0.003,93209.0,93207.0,0.3608]
[1734971159961,0.3608,93229.0,93207.0,0.3608]
[1734971160270,0.003,93222.0,93218.0,0.3608]
[1734971160462,0.004,93222.0,93218.0,0.3608]
[1734971160855,0.004,93222.0,93199.0,0.05496834]
[1734971161056,0.004,93222.0,93192.0,0.1917459]
[1734971161057,0.3608,93200.0,93192.0,0.1917459]
[1734971161261,0.3608,93193.0,93192.0,0.1917459]
[1734971161461,0.3608,93193.0,93186.0,0.22452953]
[1734971161661,0.3608,93187.0,93177.0,0.31957651]
[1734971161969,0.3608,93178.0,93177.0,0.31957651]
[1734971162165,0.3608,93178.0,93149.0,0.3608]
[1734971162361,0.3608,93162.0,93149.0,0.3608]
[1734971163059,0.3608,93162.0,93139.0,0.3608]
[1734971163267,0.3608,93149.0,93139.0,0.3608]
[1734971164368,0.3608,93149.0,93130.0,0.3608]
[1734971164574,0.3608,93149.0,93139.0,0.001]
[1734971165863,0.3608,93149.0,93139.0,0.002]
[1734971166171,0.3608,93149.0,93139.0,0.001]
[1734971166572,0.3618,93149.0,93130.0,0.002]
[1734971166773,0.3618,93149.0,93129.0,0.3608]
[1734971167072,0.41793291,93149.0,93129.0,0.3608]
[1734971167665,0.41693291,93149.0,93130.0,0.001]
[1734971168060,0.3618,93149.0,93138.0,0.3608]
[1734971168268,0.3618,93149.0,93147.0,0.3608]
[1734971168269,0.001,93149.0,93147.0,0.3608]
[1734971168577,0.3608,93164.0,93147.0,0.3608]
[1734971169368,0.3608,93164.0,93156.0,0.3608]
[1734971169874,0.3628,93164.0,93156.0,0.3608]
[1734971170264,0.002,93164.0,93158.0,0.3608]
[1734971170469,0.3608,93190.0,93158.0,0.3608]
[1734971170669,0.36241049,93181.0,93167.0,0.3608]
[1734971171071,0.36241049,93181.0,93158.0,0.3608]
[1734971171373,0.3608,93160.0,93156.0,0.002]
[1734971172479,0.3608,93160.0,93158.0,0.003]
[1734971173297,0.3608,93160.0,93156.0,0.003]
[1734971173469,0.51986613,93178.0,93159.0,0.3608]
[1734971173668,0.57308644,93178.0,93159.0,0.3608]
[1734971173869,0.51902613,93178.0,93159.0,0.3608]
[1734971174065,0.51902613,93178.0,93171.0,0.3608]
[1734971174270,0.51902613,93178.0,93168.0,0.3608]
[1734971174673,0.15822613,93178.0,93168.0,0.3608]
[1734971175176,0.00161049,93181.0,93168.0,0.3608]
[1734971175674,0.00161049,93181.0,93180.0,0.3608]
[1734971175871,0.00161049,93181.0,93179.0,0.3608]
[1734971176067,0.00161049,93181.0,93168.0,0.3608]
[1734971176268,0.3608,93169.0,93155.0,0.3608]
[1734971176473,0.3608,93169.0,93152.0,0.00161037]
[1734971177965,0.51902613,93169.0,93152.0,0.00161037]
[1734971178173,0.51902613,93169.0,93156.0,0.3608]
[1734971179381,0.51902613,93169.0,93156.0,0.3638]
[1734971179574,0.3608,93169.0,93156.0,0.3658]
[1734971179882,0.3608,93169.0,93156.0,0.3638]
[1734971180378,0.3608,93169.0,93156.0,0.3628]
[1734971181470,0.3608,93169.0,93156.0,0.41686633]
[1734971181671,0.3608,93169.0,93156.0,0.41786633]
[1734971181879,0.3608,93169.0,93156.0,0.41686633]
[1734971182267,0.3608,93169.0,93156.0,0.41786633]
[1734971182674,0.3608,93169.0,93156.0,0.41686633]
[1734971182880,0.3608,93169.0,93156.0,0.41786633]
[1734971183473,0.15822613,93176.0,93167.0,0.3608]
[1734971185080,0.36241049,93181.0,93167.0,0.3608]
[1734971185481,0.3608,93171.0,93156.0,0.001]
[1734971185683,0.3608,93161.0,93156.0,0.001]
[1734971185882,0.3608,93161.0,93152.0,0.00161037]
[1734971186386,0.15822613,93168.0,93158.0,0.3608]
[1734971187087,0.18969667,93172.0,93166.0,0.3608]
[1734971187982,0.18969667,93172.0,93171.0,0.053737]
[1734971188181,0.3608,93201.0,93168.0,0.3608]
[1734971188377,0.3608,93201.0,93187.0,0.3608]
[1734971188576,0.3608,93201.0,93188.0,0.6623]
[1734971188789,0.05505639,93218.0,93197.0,0.3608]
[1734971188980,0.34895841,93237.0,93205.0,0.3608]
[1734971189287,0.34811841,93237.0,93215.0,0.3608]
[1734971189477,0.34811841,93237.0,93233.0,0.3608]
[1734971189886,0.0016093,93256.0,93233.0,0.3608]
[1734971190079,0.0016093,93256.0,93245.0,0.3608]
[1734971190881,0.0016093,93256.0,93233.0,1.86144]
[1734971191086,0.0016093,93256.0,93233.0,1.8608]
[1734971191380,0.0016093,93256.0,93242.0,0.3608]
[1734971191786,0.0016093,93256.0,93250.0,0.3608]
[1734971192180,0.0076093,93256.0,93245.0,0.001]
[1734971192587,0.0126093,93256.0,93251.0,0.3608]
[1734971192988,0.0136093,93256.0,93251.0,0.3608]
[1734971193192,0.012,93256.0,93251.0,0.3608]
[1734971193385,0.05297504,93276.0,93254.0,0.3608]
[1734971193582,0.3608,93294.0,93268.0,0.3608]
[1734971193979,0.3608,93294.0,93280.0,0.3608]
[1734971194177,0.28884,93303.0,93280.0,0.3608]
[1734971194383,0.28884,93303.0,93291.0,0.3608]
[1734971195189,0.3608,93301.0,93291.0,0.3608]